Workbook

Sheet MSU
B1: Harri Laakso | E1: 26.3.1962
B2: SUPERPESIS | E2: Runkosarja | I2: Kärkilyönnit (KL), pesänvälit | P2: Runkosarja TOP-30 | U2: Alempi loppusarja | AB2: Ylempi loppusarja TOP-10 | AG2: Play off, voitot, voittoprosentti | AL2: Arvo-ottelut | AO2: Mitalit
B3: Vuosi | C3: Sija | D3: Seura | E3: OTT | F3: KUN | G3: LÖI | H3: TOI | I3: KL | J3: 0 > 1 | K3: 1 > 2 | L3: 2 > 3 | M3: 3 > k | N3: KL-% | P3: LÖI | Q3: TOI | R3: L+T | S3: KL | U3: OTT | V3: KUN | W3: LÖI | X3: TOI | Y3: KL | Z3: KL-% | AB3: LÖI | AC3: TOI | AD3: L+T | AE3: KL | AG3: Puolivälierät | AH3: Välierät | AI3: Pronssi | AJ3: Finaalit | AL3: IL | AM3: LL | AN3: Cup | AO3: K | AP3: H | AQ3: P
B4: 1981 | C4: 4. | D4: NJ | F4: ykkössarja | AA4: 0
B5: 1982 | C5: 6. | D5: NJ | F5: ykkössarja | AA5: 0
B6: 1983 | C6: 5. | D6: NJ | F6: ykkössarja
B7: 1984 | C7: 4. | D7: NJ | F7: ykkössarja | AA7: 0
B8: 1985 | C8: 12. | D8: NJ | E8: 22 | F8: 0 | G8: 7 | H8: 9 | I8: 77 | J8: 16 | K8: 34 | L8: 20 | M8: 7 | N8: 49.0 % | O8: =PRODUCT(I8/N8) -> 157.1428571 | AA8: 0
B9: 1986 | C9: 3. | D9: NJ | F9: ykkössarja | O9: 0 | U9: 3 | V9: 0 | W9: 2 | X9: 0 | Y9: 13 | Z9: 61.9 % | AA9: 66
B10: 1987 | C10: 12. | D10: NJ | E10: 22 | F10: 0 | G10: 5 | H10: 13 | I10: 81 | J10: 28 | K10: 30 | L10: 18 | M10: 5 | N10: 50.0 % | O10: =PRODUCT(I10/N10) -> 162 | U10: 6 | V10: 0 | W10: 0 | X10: 2 | Y10: 14 | Z10: 42.4 %
B11: 1988 | C11: 4. | D11: NJ | F11: ykkössarja | O11: 0
B12: 1989 | C12: 5. | D12: NJ | F12: ykkössarja | O12: 0
B13: 1990 | C13: 14. | D13: LP | E13: 26 | F13: 2 | G13: 15 | H13: 19 | I13: 95 | J13: 22 | K13: 34 | L13: 22 | M13: 17 | N13: 47.3 % | O13: =PRODUCT(I13/N13) -> 200.845666
B14: 1991 | C14: 1. | D14: LP | F14: ykkössarja | O14: 0
B15: 1992 | C15: 11. | D15: LP | E15: 25 | F15: 2 | G15: 23 | H15: 11 | I15: 94 | J15: 23 | K15: 22 | L15: 24 | M15: 25 | N15: 48.5 % | O15: =PRODUCT(I15/N15) -> 193.814433 | U15: 3 | V15: 0 | W15: 1 | X15: 1 | Y15: 9 | Z15: 39.1 % | AA15: 0
B16: 1993 | C16: 7. | D16: LP | E16: 23 | F16: 1 | G16: 10 | H16: 11 | I16: 76 | J16: 25 | K16: 15 | L16: 25 | M16: 11 | N16: 44.2 % | O16: =PRODUCT(I16/N16) -> 171.9457014 | AA16: 0 | AG16: 1-3 AA
B17: 1994 | C17: 8. | D17: NJ | F17: ykköspesis | O17: 0 | AA17: 0
B18: 1995 | C18: 9. | D18: NJ | F18: ykköspesis | O18: 0 | AA18: 40
B19: Yhteensä | E19: 118 | F19: 5 | G19: 60 | H19: 63 | I19: 423 | J19: 114 | K19: 135 | L19: 109 | M19: 65 | N19: 47.8 % | O19: =SUM(O8:O18) -> 885.7486575 | P19: 0-0-0 | Q19: 0-0-0 | R19: 0-0-0 | S19: 0-0-0 | U19: 12 | V19: 0 | W19: 3 | X19: 3 | Y19: 36 | Z19: 46.7 % | AA19: =SUM(AA3:AA18) -> 106 | AB19: 0-0-0 | AC19: 0-0-0 | AD19: 0-0-0 | AE19: 0-0-0 | AG19: 0/1 | AH19: 0/0 | AI19: 0/0 | AJ19: 0/0 | AL19: =SUM(AL4:AL18) -> 0 | AM19: 0 | AN19: 0 | AO19: 0 | AP19: 0 | AQ19: 0
AG20: 0.0 % | AH20: 0.0 % | AI20: 0.0 % | AJ20: 0.0 %
B21: Pesispörssi | D21: 286.7
B23: URA SUPERISSA | E23: OTT | F23: KUN | G23: LÖI | H23: TOI | I23: KL | K23: ka/L | L23: ka/T | M23: ka/KL | N23: KL-% | P23: ENSIMMÄISET RUNKOSARJASSA | AG23: ENSIMMÄISET PUDOTUSPELEISSÄ | AL23: YLEISÖ
B24: Runkosarja | E24: 118 | F24: 5 | G24: 60 | H24: 63 | I24: 423 | K24: 0.55 | L24: 0.53 | M24: 3.58 | N24: 47.8 % | P24: Ottelu | R24: 05.05. 1985 NJ - KiU 2-5 | X24: 1. ottelu | Z24: 23 v 1 kk 9 pv | AG24: Ottelu | AH24: 1. 18.08. 1993 LP - AA 3-4 | AL24: 1154 | AN24: 31 v 4 kk 23 pv
B25: Ylempi loppusarja | E25: 4 | F25: 0 | G25: 0 | H25: 1 | I25: 7 | K25: 0.00 | L25: 0.25 | M25: 1.75 | N25: 29.2 % | P25: Lyöty | R25: 12.05. 1985 KPL - NJ 6-4 | X25: 2. ottelu | Z25: 23 v 1 kk 16 pv | AG25: Lyöty
B26: Alempi loppusarja | E26: 12 | F26: 0 | G26: 3 | H26: 3 | I26: 36 | K26: 0.25 | L26: 0.25 | M26: 3.00 | N26: 46.7 % | P26: Tuotu | R26: 19.05. 1985 NJ - Kiri 6-3 | X26: 4. ottelu | Z26: 23 v 1 kk 23 pv | AG26: Tuotu | AH26: 1. 18.08. 1993 LP - AA 3-4 | AL26: 1154 | AN26: 31 v 4 kk 23 pv
B27: KAIKKI | E27: 134 | F27: 5 | G27: 63 | H27: 67 | I27: 466 | K27: 0.51 | L27: 0.50 | M27: 3.48 | N27: 47.2 % | P27: Kunnari | R27: 20.05. 1990 LP - KiPa 3-12 | X27: 67. ottelu | Z27: 28 v 1 kk 24 pv | AG27: Kunnari
B29: Seurat | D29: NJ = Nurmon Jymy (1925)
D30: LP = Loimaan Palloilijat (1931)

Sheet MYP
B1: Harri Laakso | E1: 26.3.1962
B2: YKKÖSPESIS | E2: Runkosarja | L2: Runkosarja TOP-10 | Q2: Jatkosarjat | X2: SUOMENSARJA | AA2: Runkosarja | AH2: Runkosarja TOP-10 | AM2: Jatkosarjat
B3: Vuosi | C3: Sija | D3: Seura | E3: OTT | F3: KUN | G3: LÖI | H3: TOI | I3: KL | J3: KL-% | L3: LÖI | M3: TOI | N3: L+T | O3: KL | Q3: OTT | R3: KUN | S3: LÖI | T3: TOI | U3: KL | V3: KL-% | X3: Vuosi | Y3: Sija | Z3: Seura | AA3: OTT | AB3: KUN | AC3: LÖI | AD3: TOI | AE3: KL | AF3: KL-% | AH3: LÖI | AI3: TOI | AJ3: L+T | AK3: KL | AM3: OTT | AN3: KUN | AO3: LÖI | AP3: TOI | AQ3: KL | AR3: KL-%
B4: 1981 | C4: 4. | D4: NJ | E4: 10 | F4: 0 | G4: 4 | H4: 10 | I4: 41 | J4: 51.9 % | Q4: 10 | R4: 1 | S4: 3 | T4: 8
B6: 1983 | C6: 5. | D6: NJ | E6: 10 | F6: 0 | G6: 6 | H6: 6 | Q6: 10 | R6: 0 | S6: 6 | T6: 3
B7: 1984 | C7: 4. | D7: NJ | E7: 10 | F7: 0 | G7: 5 | H7: 18 | M7: 8. | Q7: 9 | R7: 0 | S7: 9 | T7: 10
B9: 1986 | C9: 3. | D9: NJ | E9: 22 | F9: 0 | G9: 7 | H9: 31 | M9: 8.
B11: 1988 | C11: 4. | D11: NJ | E11: 22 | F11: 2 | G11: 17 | H11: 27
B12: 1989 | C12: 5. | D12: NJ | E12: 21 | F12: 1 | G12: 8 | H12: 29
B14: 1991 | C14: 1. | D14: LP | E14: 22 | F14: 1 | G14: 26 | H14: 20 | I14: 82
B16: 1994 | C16: 8. | D16: NJ | E16: 28 | F16: 2 | G16: 17 | H16: 22 | I16: 119
B17: 1995 | C17: 9. | D17: NJ | E17: 16 | F17: 1 | G17: 2 | H17: 14 | I17: 67
B18: YHTEENSÄ | E18: =SUM(E4:E17) -> 161 | F18: =SUM(F4:F17) -> 7 | G18: =SUM(G4:G17) -> 92 | H18: =SUM(H4:H17) -> 177 | I18: =SUM(I4:I17) -> 309 | J18: 0.0 % | K18: =SUM(K4:K17) -> 0 | Q18: =SUM(Q4:Q17) -> 29 | R18: =SUM(R4:R17) -> 1 | S18: =SUM(S4:S17) -> 18 | T18: =SUM(T4:T17) -> 21 | U18: =SUM(U4:U17) -> 0 | V18: 0.0 % | W18: =SUM(W4:W17) -> 0 | X18: YHTEENSÄ | AA18: =SUM(AA4:AA17) -> 0 | AB18: =SUM(AB4:AB17) -> 0 | AC18: =SUM(AC4:AC17) -> 0 | AD18: =SUM(AD4:AD17) -> 0 | AE18: =SUM(AE4:AE17) -> 0 | AF18: 0.0 % | AG18: =SUM(AG4:AG17) -> 0 | AM18: =SUM(AM4:AM17) -> 0 | AN18: =SUM(AN4:AN17) -> 0 | AO18: =SUM(AO4:AO17) -> 0 | AP18: =SUM(AP4:AP17) -> 0 | AQ18: =SUM(AQ4:AQ17) -> 0 | AR18: 0.0 % | AS18: =SUM(AS4:AS17) -> 0
B20: KAIKKI OTTELUT | E20: OTT | F20: KUN | G20: LÖI | H20: TOI | I20: KL | J20: KL-% | L20: ka/L | M20: ka/T | N20: ka/l+t | O20: ka/kl | R20: Seurat | T20: NJ = Nurmon Jymy (1925)
B21: SUPERPESIS | E21: 134 | F21: 5 | G21: 63 | H21: 67 | I21: 466 | J21: 47.2 % | K21: =PRODUCT(I21/J21) -> 987.2881356 | L21: =PRODUCT((F21+G21)/E21) -> 0.51 | M21: =PRODUCT(H21/E21) -> 0.50 | N21: =PRODUCT((F21+G21+H21)/E21) -> 1.01 | O21: =PRODUCT(I21/E21) -> 3.48 | T21: LP = Loimaan Palloilijat (1931)
B22: YKKÖSPESIS | E22: =PRODUCT(E18+Q18) -> 190 | F22: =PRODUCT(F18+R18) -> 8 | G22: =PRODUCT(G18+S18) -> 110 | H22: =PRODUCT(H18+T18) -> 198 | I22: =PRODUCT(I18+U18) -> 309 | K22: =PRODUCT(K18+W18) -> 0 | L22: =PRODUCT((F22+G22)/E22) -> 0.62 | M22: =PRODUCT(H22/E22) -> 1.04 | N22: =PRODUCT((F22+G22+H22)/E22) -> 1.66 | O22: =PRODUCT(I22/76) -> 4.07
B23: SUOMENSARJA | E23: =PRODUCT(AA18+AM18) -> 0 | F23: =PRODUCT(AB18+AN18) -> 0 | G23: =PRODUCT(AC18+AO18) -> 0 | H23: =PRODUCT(AD18+AP18) -> 0 | I23: =PRODUCT(AE18+AQ18) -> 0 | J23: 0.0 % | K23: =PRODUCT(AG18+AS18) -> 0 | L23: 0.00 | M23: 0.00 | N23: 0.00 | O23: 0.00
B24: YHTEENSÄ | E24: =SUM(E21:E23) -> 324 | F24: =SUM(F21:F23) -> 13 | G24: 173 | H24: 265 | I24: 775 | K24: =SUM(K21:K23) -> 987.2881356 | L24: =PRODUCT((F24+G24)/E24) -> 0.57 | M24: =PRODUCT(H24/E24) -> 0.82 | N24: =PRODUCT((F24+G24+H24)/E24) -> 1.39 | O24: 3.48

Sheet Arvo-ottelut
B1: ITÄ - LÄNSI - KORTTI
B2: Harri Laakso | C2: 26.3.1962
B3: B-POJAT | C3: Itä - Länsi, tulos | D3: Joukkue | E3: Seura | G3: V | H3: T | I3: H | J3: Up. | K3: Lj. | L3: Palk. | M3: O | N3: K | O3: L | P3: T | Q3: KL | R3: 1 | S3: 2 | T3: 3 | U3: k | V3: KL-% | W3: Pelinjohtaja | X3: Yleisöä
B4: 19.08. 1978 Nurmo | C4: 9-7 | D4: Länsi | E4: NJ | I4: 1 | J4: 2v | K4: 6 | L4: yp | M4: 1 | P4: 1 | W4: Kari Kiiskilä
B5: 07.07. 1979 Lahti | C5: 5-9 | D5: Länsi | E5: NJ | I5: 1 | J5: 3v | K5: 4 | L5: I p | M5: 1 | N5: 1 | O5: 2 | P5: 1 | W5: Antero Salonen
B7: A-POJAT | C7: Itä - Länsi, tulos | D7: Joukkue | E7: Seura | G7: V | H7: T | I7: H | J7: Up. | K7: Lj. | L7: Palk. | M7: O | N7: K | O7: L | P7: T | Q7: KL | R7: 1 | S7: 2 | T7: 3 | U7: k | V7: KL-% | W7: Pelinjohtaja | X7: Yleisöä
B8: 12.07. 1980 Alajärvi | C8: 5-13 | D8: Länsi | E8: NJ | G8: 1 | J8: 3p | K8: 7 | M8: 1 | W8: Timo Hakala | X8: 350
